lending/lending_fUSD_20240509
["ID","MTS","AMOUNT","RATE_DAILY","PERIOD"]
[326725442,1715284280664,-500.0,0.00041643,32]
[326725443,1715284280673,-151.0,0.00041643,14]
[326725444,1715284280683,-151.0,0.00041643,14]
[326725445,1715284280693,-513.24261876,0.00041643,32]
[326725446,1715284280703,-500.0,0.00041643,32]
[326725447,1715284280712,-500.0,0.00041643,32]
[326725448,1715284280721,-839.52,0.00041643,32]
[326725449,1715284280731,-500.0,0.00041643,32]
[326725450,1715284280741,-500.0,0.00041643,2]
[326725451,1715284280750,-529.88,0.00041643,32]
[326725452,1715284280760,-580.77,0.00041643,32]
[326725453,1715284280770,-500.0,0.00041643,32]
[326725454,1715284280779,-500.0,0.00041643,32]
[326725455,1715284280789,-1058.44,0.00041643,32]
[326725456,1715284280799,-1839.1,0.00041643,32]
[326725457,1715284280809,-503.54315361,0.00041643,32]
[326725458,1715284280819,-500.0,0.00041643,32]
[326725459,1715284280829,-1338.17,0.00041643,32]
[326725460,1715284280839,-517.03523176,0.00041643,32]
[326725461,1715284280848,-634.52082204,0.00041643,32]
[326725462,1715284280858,-500.0,0.00041643,32]
[326725463,1715284280867,-500.0,0.00041643,32]
[326725464,1715284280877,-885.42,0.00041643,32]
[326725465,1715284280888,-260.93761086,0.00041643,32]
[326725466,1715284280897,-1637.95,0.00041643,32]
[326725467,1715284280907,-500.0,0.00041643,32]
[326725468,1715284280920,-500.0,0.00041643,32]
[326725469,1715284280930,-500.0,0.00041643,32]
[326725470,1715284280940,-500.0,0.00041643,32]
[326725471,1715284280949,-484.4662123,0.00041643,32]
[326725472,1715284280959,-500.0,0.00041643,32]
[326725473,1715284280969,-500.0,0.00041643,32]
[326725474,1715284280979,-1613.42,0.00041643,32]
[326725475,1715284280988,-3415.12,0.00041643,32]
[326725476,1715284281001,-500.0,0.00041643,32]
[326725477,1715284281012,-1630.14,0.00041643,32]
[326725478,1715284281022,-549.36,0.00041643,32]
[326725479,1715284281032,-500.0,0.00041643,32]
[326725480,1715284281042,-566.98,0.00041643,32]
[326725481,1715284281051,-500.0,0.00041643,32]
[326725482,1715284281061,-515.80829854,0.00041643,32]
[326725483,1715284281071,-1472.57,0.00041643,32]
[326725484,1715284281080,-500.0,0.00041643,32]
[326725485,1715284281090,-500.0,0.00041643,32]
[326725486,1715284281100,-500.0,0.00041643,32]
[326725487,1715284281110,-500.0,0.00041643,32]
[326725488,1715284281119,-719.12,0.00041643,32]
[326725489,1715284281129,-500.0,0.00041643,32]
[326725490,1715284281140,-500.0,0.00041643,32]
[326725491,1715284281150,-1338.55,0.00041643,30]
[326725492,1715284281160,-2379.3,0.00041643,90]
[326725493,1715284281169,-500.0,0.00041643,32]
[326725494,1715284281179,-500.0,0.00041643,32]
[326725495,1715284281188,-500.0,0.00041643,32]
[326725496,1715284281198,-500.0,0.00041643,32]
[326725497,1715284281207,-500.0,0.00041643,32]
[326725498,1715284281216,-500.0,0.00041643,32]
[326725499,1715284281225,-500.0,0.00041643,32]
[326725500,1715284281234,-1016.5,0.00041643,32]
[326725501,1715284281244,-500.0,0.00041643,32]
[326725502,1715284281253,-500.0,0.00041643,32]
[326725503,1715284281262,-500.0,0.00041643,32]
[326725504,1715284281272,-1979.98,0.00041643,32]
[326725505,1715284281283,-500.0,0.00041643,32]
[326725506,1715284281292,-500.0,0.00041643,32]
[326725507,1715284281301,-745.75,0.00041643,32]
[326725508,1715284281311,-500.0,0.00041643,32]
[326725509,1715284281320,-500.0,0.00041643,32]
[326725510,1715284281329,-500.0,0.00041643,32]
[326725511,1715284281339,-500.0,0.00041643,32]
[326725512,1715284281348,-526.45,0.00041643,32]
[326725513,1715284281357,-882.56,0.00041643,32]
[326725514,1715284281367,-500.0,0.00041643,32]
[326725515,1715284281376,-500.0,0.00041643,32]
[326725516,1715284281386,-1256.94,0.00041643,32]
[326725517,1715284281396,-1000.0,0.00041643,32]
[326725518,1715284281405,-500.0,0.00041643,32]
[326725519,1715284281415,-751.0,0.00041643,32]
[326725520,1715284281424,-500.0,0.00041643,32]
[326725521,1715284281433,-500.0,0.00041643,32]
[326725522,1715284281443,-500.0,0.00041643,32]
[326725523,1715284281452,-500.0,0.00041643,32]
[326725524,1715284281461,-1209.71,0.00041643,32]
[326725525,1715284281471,-500.0,0.00041643,32]
[326725526,1715284281480,-696.11,0.00041643,32]
[326725527,1715284281490,-500.0,0.00041643,32]
[326725528,1715284281499,-500.0,0.00041643,32]
[326725529,1715284281725,-1233.7,0.00041643,32]
[326725530,1715284281735,-632.26251469,0.00041643,32]
[326725531,1715284281744,-225.793991,0.00041643,14]
[326725532,1715284281754,-507.37401209,0.00041643,32]
[326725533,1715284281763,-500.0,0.00041643,32]
[326725534,1715284281773,-1243.61,0.00041643,32]
[326725535,1715284281781,-1195.95,0.00041643,32]
[326725536,1715284281791,-500.0,0.00041643,32]
[326725537,1715284281800,-500.0,0.00041643,32]
[326725538,1715284281809,-169.64857691,0.00041643,32]
[326725539,1715284281819,-500.0,0.00041643,32]
[326725540,1715284281828,-500.0,0.00041643,32]
[326725541,1715284281837,-566.25,0.00041643,32]
[326725542,1715284281847,-1169.68,0.00041643,32]
[326725543,1715284281857,-1260.04,0.00041643,32]
[326725544,1715284281866,-500.0,0.00041643,32]
[326725545,1715284281875,-500.0,0.00041643,32]
[326725546,1715284281885,-541.04,0.00041643,32]
[326725547,1715284281895,-500.0,0.00041643,32]
[326725548,1715284281904,-500.0,0.00041643,32]
[326725549,1715284281914,-2321.84,0.00041643,32]
[326725550,1715284281928,-1256.03,0.00041643,32]
[326725551,1715284281937,-1200.0,0.00041643,2]
[326725552,1715284281946,-934.31,0.00041643,32]
[326725553,1715284281956,-546.87,0.00041643,32]
[326725554,1715284281966,-500.0,0.00041643,32]
[326725555,1715284281976,-500.0,0.00041643,32]
[326725556,1715284281985,-500.0,0.00041643,32]
[326725557,1715284281994,-500.0,0.00041643,32]
[326725558,1715284282005,-500.0,0.00041643,32]
[326725559,1715284282015,-500.0,0.00041643,32]
[326725560,1715284282025,-1577.72,0.00041643,32]
[326725561,1715284282035,-1229.48,0.00041643,32]
[326725562,1715284282044,-500.0,0.00041643,32]
[326725563,1715284282054,-505.93,0.00041643,32]
[326725564,1715284282064,-659.81,0.00041643,32]
[326725565,1715284282073,-500.0,0.00041643,32]
[326725566,1715284282082,-671.85,0.00041643,32]
[326725567,1715284282092,-500.0,0.00041643,32]
[326725568,1715284282101,-500.0,0.00041643,32]
[326725569,1715284282110,-1454.91,0.00041643,32]
[326725570,1715284282120,-719.25,0.00041643,32]
[326725571,1715284282129,-500.0,0.00041643,32]
[326725572,1715284282138,-500.0,0.00041643,32]
[326725573,1715284282147,-709.98,0.00041643,32]
[326725574,1715284282156,-500.0,0.00041643,32]
[326725575,1715284282166,-1513.86,0.00041643,32]
[326725576,1715284282175,-500.0,0.00041643,32]
[326725577,1715284282183,-932.92,0.00041643,32]
[326725578,1715284282193,-500.0,0.00041643,32]
[326725579,1715284282202,-769.91,0.00041643,32]
[326725580,1715284282211,-1334.08,0.00041643,32]
[326725581,1715284282220,-500.0,0.00041643,32]
[326725582,1715284282229,-387.08382539,0.00041643,32]
[326725583,1715284282238,-550.67,0.00041643,32]
[326725584,1715284282247,-500.0,0.00041643,32]
[326725585,1715284282256,-500.0,0.00041643,32]
[326725586,1715284282266,-505.23,0.00041643,32]
[326725587,1715284282275,-154.938134,0.00041643,14]
[326725588,1715284282284,-597.49,0.00041643,32]
[326725589,1715284282293,-500.0,0.00041643,32]
[326725590,1715284282303,-611.43,0.00041643,32]
[326725591,1715284282312,-500.0,0.00041643,32]
[326725592,1715284282321,-532.24,0.00041643,32]
[326725593,1715284282330,-500.0,0.00041643,32]
[326725594,1715284282339,-500.0,0.00041643,32]
[326725595,1715284282349,-516.87538082,0.00041643,32]
[326725596,1715284282358,-823.13,0.00041643,32]
[326725597,1715284282368,-500.0,0.00041643,32]
[326725598,1715284282377,-1187.53,0.00041643,32]
[326725599,1715284282386,-500.0,0.00041643,32]
[326725600,1715284282396,-1247.18,0.00041643,32]
[326725601,1715284282406,-500.0,0.00041643,32]
[326725602,1715284282415,-508.84,0.00041643,32]
[326725603,1715284282424,-500.0,0.00041643,32]
[326725604,1715284282433,-1415.93,0.00041643,32]
[326725605,1715284282443,-500.0,0.00041643,32]
[326725606,1715284282452,-500.0,0.00041643,32]
[326725607,1715284282461,-500.0,0.00041643,32]
[326725608,1715284282470,-500.0,0.00041643,32]
[326725609,1715284282479,-1153.63,0.00041643,32]
[326725610,1715284282488,-500.0,0.00041643,32]
[326725611,1715284282497,-507.17037916,0.00041643,32]
[326725612,1715284282506,-500.0,0.00041643,32]
[326725613,1715284282515,-865.47,0.00041643,32]
[326725614,1715284282525,-500.0,0.00041643,32]
[326725615,1715284282534,-500.0,0.00041643,32]
[326725616,1715284282543,-658.52,0.00041643,32]
[326725617,1715284282552,-500.0,0.00041643,32]
[326725618,1715284282561,-500.0,0.00041643,32]
[326725619,1715284282570,-676.54,0.00041643,32]
[326725620,1715284282579,-500.0,0.00041643,32]
[326725621,1715284282589,-1052.23,0.00041643,32]
[326725622,1715284282598,-500.0,0.00041643,32]
[326725623,1715284282607,-500.0,0.00041643,32]
[326725624,1715284282617,-500.0,0.00041643,32]
[326725625,1715284282626,-500.0,0.00041643,7]
[326725626,1715284282636,-500.0,0.00041643,32]
[326725627,1715284282645,-794.94,0.00041643,32]
[326725628,1715284282654,-769.57,0.00041643,32]
[326725629,1715284282664,-914.58,0.00041643,32]
[326725630,1715284282673,-500.0,0.00041643,32]
[326725631,1715284282682,-2665.68,0.00041643,32]
[326725632,1715284282691,-500.0,0.00041643,32]
[326725633,1715284282701,-1985.26,0.00041643,32]
[326725634,1715284282710,-500.0,0.00041643,32]
[326725635,1715284282719,-500.0,0.00041643,32]
[326725636,1715284282728,-500.0,0.00041643,32]
[326725637,1715284282737,-500.0,0.00041643,32]
[326725638,1715284282746,-500.0,0.00041643,32]
[326725639,1715284282755,-647.0,0.00041643,32]
[326725640,1715284282764,-563.36,0.00041643,32]
[326725641,1715284282773,-1914.93,0.00041643,32]
[326725642,1715284282783,-500.0,0.00041643,32]
[326725643,1715284282792,-507.62492102,0.00041643,32]
[326725644,1715284282801,-500.0,0.00041643,32]
[326725645,1715284282811,-500.0,0.00041643,32]
[326725646,1715284282820,-650.07,0.00041643,32]
[326725647,1715284282830,-566.11,0.00041643,32]
[326725648,1715284282839,-500.0,0.00041643,32]
[326725649,1715284282848,-575.54,0.00041643,32]
[326725650,1715284282858,-1454.4,0.00041643,32]
[326725651,1715284282867,-500.0,0.00041643,32]
[326725652,1715284282875,-941.24,0.00041643,32]
[326725653,1715284282885,-500.0,0.00041643,32]
[326725654,1715284282895,-997.23,0.00041643,32]
[326725655,1715284282904,-500.0,0.00041643,32]
[326725656,1715284282913,-500.0,0.00041643,32]
[326725657,1715284282927,-500.0,0.00041643,32]
[326725658,1715284282936,-559.98,0.00041643,32]
[326725659,1715284282945,-500.0,0.00041643,32]
[326725660,1715284282954,-500.0,0.00041643,32]
[326725661,1715284282965,-500.0,0.00041643,32]
[326725662,1715284282974,-500.0,0.00041643,32]
[326725663,1715284282983,-500.0,0.00041643,32]
[326725664,1715284282994,-500.0,0.00041643,32]
[326725665,1715284283003,-500.0,0.00041643,32]
[326725666,1715284283013,-500.0,0.00041643,32]
[326725667,1715284283022,-500.0,0.00041643,32]
[326725668,1715284283031,-500.0,0.00041643,32]
[326725669,1715284283040,-1037.79,0.00041643,32]
[326725670,1715284283049,-675.75,0.00041643,32]
[326725671,1715284283057,-500.0,0.00041643,32]
[326725672,1715284283066,-2147.11,0.00041643,32]
[326725673,1715284283076,-734.18,0.00041643,32]
[326725674,1715284283085,-500.0,0.00041643,32]
[326725675,1715284283094,-500.0,0.00041643,32]
[326725676,1715284283103,-1545.81,0.00041643,32]
[326725677,1715284283112,-2955.61,0.00041643,32]
[326725678,1715284283121,-500.0,0.00041643,32]
[326725679,1715284283130,-500.0,0.00041643,32]
[326725680,1715284283139,-500.0,0.00041643,32]
[326725681,1715284283149,-500.0,0.00041643,32]
[326725682,1715284283158,-500.0,0.00041643,32]
[326725683,1715284283166,-500.0,0.00041643,32]
[326725684,1715284283176,-500.0,0.00041643,32]
[326725685,1715284283185,-576.72,0.00041643,32]
[326725686,1715284283194,-500.0,0.00041643,32]
[326725687,1715284283203,-500.0,0.00041643,32]
[326725688,1715284283213,-500.0,0.00041643,32]
[326725689,1715284283222,-1058.7,0.00041643,32]
[326725690,1715284283231,-500.0,0.00041643,32]
[326725691,1715284283240,-500.0,0.00041643,32]
[326725692,1715284283250,-503.76663654,0.00041643,32]
[326725693,1715284283259,-500.0,0.00041643,32]
[326725694,1715284283269,-627.57,0.00041643,32]
[326725695,1715284283278,-500.0,0.00041643,32]
[326725696,1715284283287,-500.0,0.00041643,32]
[326725697,1715284283297,-863.0,0.00041643,32]
[326725698,1715284283306,-500.0,0.00041643,32]
[326725699,1715284283316,-500.0,0.00041643,32]
[326725700,1715284283326,-500.0,0.00041643,32]
[326725701,1715284283335,-500.0,0.00041643,32]
[326725702,1715284283345,-507.26725776,0.00041643,32]
[326725703,1715284283354,-500.0,0.00041643,32]
[326725704,1715284283363,-506.9980123,0.00041643,32]
[326725705,1715284283372,-580.11,0.00041643,32]
[326725706,1715284283381,-500.0,0.00041643,32]
[326725707,1715284283391,-500.0,0.00041643,32]
[326725708,1715284283400,-500.0,0.00041643,32]
[326725709,1715284283409,-500.0,0.00041643,32]
[326725710,1715284283418,-500.0,0.00041643,32]
[326725711,1715284283427,-500.0,0.00041643,32]
[326725712,1715284283436,-1111.38,0.00041643,32]
[326725713,1715284283445,-500.0,0.00041643,32]
[326725714,1715284283455,-500.0,0.00041643,32]
[326725715,1715284283464,-694.46,0.00041643,32]
[326725716,1715284283473,-500.0,0.00041643,32]
[326725717,1715284283482,-500.0,0.00041643,32]
[326725718,1715284283492,-3862.76,0.00041643,32]
[326725719,1715284283501,-500.0,0.00041643,32]
[326725720,1715284283511,-561.13,0.00041643,32]
[326725721,1715284283520,-500.0,0.00041643,32]
[326725722,1715284283530,-500.0,0.00041643,32]
[326725723,1715284283539,-500.0,0.00041643,32]
[326725724,1715284283548,-500.0,0.00041643,32]
[326725725,1715284283557,-500.0,0.00041643,32]
[326725726,1715284283567,-1342.43,0.00041643,32]
[326725727,1715284283576,-508.91793636,0.00041643,32]
[326725728,1715284283585,-2004.21,0.00041643,32]
[326725729,1715284283595,-500.0,0.00041643,32]
[326725730,1715284283604,-500.0,0.00041643,32]
[326725731,1715284283613,-737.9,0.00041643,32]
[326725732,1715284283622,-649.01,0.00041643,32]
[326725733,1715284283631,-500.0,0.00041643,32]
[326725734,1715284283640,-445.98842465,0.00041643,32]
[326725735,1715284283650,-508.82400909,0.00041643,32]
[326725736,1715284283659,-500.0,0.00041643,32]
[326725737,1715284283668,-500.0,0.00041643,32]
[326725738,1715284283678,-500.0,0.00041643,32]
[326725739,1715284283687,-544.4,0.00041643,32]
[326725740,1715284283696,-500.0,0.00041643,32]
[326725741,1715284283705,-500.0,0.00041643,32]
[326725742,1715284283715,-500.0,0.00041643,32]
[326725743,1715284283724,-507.39886878,0.00041643,32]
[326725744,1715284283733,-807.63,0.00041643,32]
[326725745,1715284283743,-500.0,0.00041643,32]
[326725746,1715284283751,-2184.2,0.00041643,32]
[326725747,1715284283761,-503.00262739,0.00041643,32]
[326725748,1715284283770,-500.0,0.00041643,32]
[326725749,1715284283779,-500.0,0.00041643,32]
[326725750,1715284283788,-500.0,0.00041643,32]
[326725751,1715284283798,-1120.97,0.00041643,32]
[326725752,1715284283807,-3004.04,0.00041643,32]
[326725753,1715284283816,-322.36405576,0.00041643,32]
[326725754,1715284283826,-716.86,0.00041643,32]
[326725755,1715284283835,-500.0,0.00041643,32]
[326725756,1715284283844,-784.22,0.00041643,32]
[326725757,1715284283853,-345.00581726,0.00041643,32]
[326725758,1715284283863,-899.54,0.00041643,32]
[326725759,1715284283872,-606.77,0.00041643,32]
[326725760,1715284283881,-500.0,0.00041643,32]
[326725761,1715284283890,-500.0,0.00041643,32]
[326725762,1715284283900,-520.94001839,0.00041643,32]
[326725763,1715284283910,-509.01407285,0.00041643,32]
[326725764,1715284283924,-523.82,0.00041643,32]
[326725765,1715284283934,-500.0,0.00041643,32]
[326725766,1715284283944,-500.0,0.00041643,32]
[326725767,1715284283953,-1016.31,0.00041643,32]
[326725768,1715284283966,-500.0,0.00041643,32]
[326725769,1715284283975,-500.0,0.00041643,32]
[326725770,1715284283984,-1333.36,0.00041643,32]
[326725771,1715284283995,-9548.06,0.00041643,32]
[326725772,1715284284005,-509.13528052,0.00041643,32]
[326725773,1715284284016,-500.0,0.00041643,32]
[326725774,1715284284025,-500.0,0.00041643,32]
[326725775,1715284284035,-500.0,0.00041643,32]
[326725776,1715284284044,-500.0,0.00041643,32]
[326725777,1715284284053,-527.9013874,0.00041643,32]
[326725778,1715284284062,-511.29299901,0.00041643,32]
[326725779,1715284284072,-500.0,0.00041643,32]
[326725780,1715284284081,-500.0,0.00041643,32]
[326725781,1715284284091,-513.36993544,0.00041643,32]
[326725782,1715284284100,-500.0,0.00041643,32]
[326725783,1715284284110,-500.0,0.00041643,32]
[326725784,1715284284119,-500.0,0.00041643,32]
[326725785,1715284284128,-1603.48,0.00041643,32]
[326725786,1715284284137,-500.0,0.00041643,32]
[326725787,1715284284147,-500.0,0.00041643,32]
[326725788,1715284284156,-500.0,0.00041643,32]
[326725789,1715284284182,-500.0,0.00041643,32]
[326725790,1715284284191,-500.0,0.00041643,32]
[326725791,1715284284201,-923.28,0.00041643,32]
[326725792,1715284284210,-500.0,0.00041643,32]
[326725793,1715284284219,-500.0,0.00041643,32]
[326725794,1715284284228,-500.0,0.00041643,32]
[326725795,1715284284238,-4124.78,0.00041643,32]
[326725796,1715284284247,-500.0,0.00041643,32]
[326725797,1715284284256,-151.0,0.00041643,14]
[326725798,1715284284265,-570.71,0.00041643,32]
[326725799,1715284284274,-151.0,0.00041643,14]
[326725800,1715284284284,-500.0,0.00041643,32]
[326725801,1715284284293,-500.0,0.00041643,32]
[326725802,1715284284303,-500.0,0.00041643,32]
[326725803,1715284284312,-500.0,0.00041643,32]
[326725804,1715284284322,-500.0,0.00041643,32]
[326725805,1715284284331,-500.0,0.00041643,32]
[326725806,1715284284340,-500.0,0.00041643,32]
[326725807,1715284284349,-500.0,0.00041643,32]
[326725808,1715284284358,-500.0,0.00041643,32]
[326725809,1715284284367,-500.0,0.00041643,32]
[326725810,1715284284377,-1079.34,0.00041643,32]
[326725811,1715284284386,-544.18,0.00041643,32]
[326725812,1715284284396,-500.0,0.00041643,32]
[326725813,1715284284406,-954.73,0.00041643,32]
[326725814,1715284284416,-500.0,0.00041643,32]
[326725815,1715284284425,-1556.01,0.00041643,32]
[326725816,1715284284434,-507.22910788,0.00041643,32]
[326725817,1715284284443,-552.58,0.00041643,32]
[326725818,1715284284453,-500.0,0.00041643,32]
[326725819,1715284284462,-500.0,0.00041643,32]
[326725820,1715284284471,-500.0,0.00041643,32]
[326725821,1715284284480,-2930.31,0.00041643,32]
[326725822,1715284284489,-1303.06,0.00041643,32]
[326725823,1715284284499,-3583.5,0.00041643,32]
[326725824,1715284284508,-500.0,0.00041643,32]
[326725825,1715284284517,-500.0,0.00041643,32]
[326725826,1715284284527,-2580.39,0.00041643,32]
[326725827,1715284284536,-561.46,0.00041643,32]
[326725828,1715284284545,-1597.71,0.00041643,32]
[326725829,1715284284555,-445.761856,0.00041643,14]
[326725830,1715284284564,-445.761856,0.00041643,14]
[326725831,1715284284573,-500.0,0.00041643,32]
[326725832,1715284284583,-500.0,0.00041643,32]
[326725833,1715284284593,-500.0,0.00041643,32]
[326725834,1715284284602,-1807.11,0.00041643,32]
[326725835,1715284284611,-500.0,0.00041643,32]
[326725836,1715284284621,-500.0,0.00041643,32]
[326725837,1715284284631,-500.0,0.00041643,32]
[326725838,1715284284641,-445.761856,0.00041643,14]
[326725839,1715284284650,-445.761856,0.00041643,14]
[326725840,1715284284660,-8734.82,0.00041643,32]
[326725841,1715284284669,-500.0,0.00041643,32]
[326725842,1715284284679,-500.0,0.00041643,32]
[326725843,1715284284861,-841.4,0.00041643,32]
[326725844,1715284284871,-935.36,0.00041643,32]
[326725845,1715284284880,-500.0,0.00041643,32]
[326725846,1715284284891,-1933.26,0.00041643,32]
[326725847,1715284284901,-500.0,0.00041643,32]
[326725848,1715284284910,-500.0,0.00041643,32]
[326725849,1715284284923,-161.264947,0.00041643,14]
[326725850,1715284284933,-151.0,0.00041643,14]
[326725851,1715284284942,-151.0,0.00041643,14]
[326725852,1715284284952,-161.264947,0.00041643,14]
[326725853,1715284284962,-603.34,0.00041643,32]
[326725854,1715284284971,-500.0,0.00041643,32]
[326725855,1715284284981,-5400.18,0.00041643,32]
[326725856,1715284284990,-500.0,0.00041643,32]
[326725857,1715284285004,-500.0,0.00041643,32]
[326725858,1715284285016,-2415.02,0.00041643,32]
[326725859,1715284285025,-161.264947,0.00041643,14]
[326725860,1715284285035,-2476.49,0.00041643,32]
[326725861,1715284285044,-161.264947,0.00041643,14]
[326725862,1715284285054,-1014.53,0.00041643,32]
[326725863,1715284285063,-992.44,0.00041643,32]
[326725864,1715284285072,-500.0,0.00041643,32]
[326725865,1715284285082,-500.0,0.00041643,32]
[326725866,1715284285091,-500.0,0.00041643,32]
[326725867,1715284285101,-507.19529296,0.00041643,32]
[326725868,1715284285110,-500.0,0.00041643,32]
[326725869,1715284285120,-259.91000001,0.00041643,32]
[326725870,1715284285129,-586.95,0.00041643,32]
[326725871,1715284285138,-45367.61,0.00041643,32]
[326725872,1715284285148,-500.0,0.00041643,32]
[326725873,1715284285158,-500.0,0.00041643,32]
[326725874,1715284285167,-619.3,0.00041643,32]
[326725875,1715284285177,-500.0,0.00041643,32]
[326725876,1715284285186,-753.42,0.00041643,32]
[326725877,1715284285196,-17086.31,0.00041643,32]
[326725878,1715284285205,-3259.03,0.00041643,32]
[326725879,1715284285215,-1012.29,0.00041643,32]
[326725880,1715284285224,-533.67617829,0.00041643,32]
[326725881,1715284285233,-500.0,0.00041643,32]
[326725882,1715284285243,-6525.05,0.00041643,32]
[326725883,1715284285252,-500.0,0.00041643,32]
[326725884,1715284285262,-500.0,0.00041643,32]
[326725885,1715284285271,-500.0,0.00041643,32]
[326725886,1715284285281,-3062.4,0.00041643,32]
[326725887,1715284285290,-500.0,0.00041643,32]
[326725888,1715284285299,-929.96,0.00041643,32]
[326725889,1715284285309,-638.17,0.00041643,32]
[326725890,1715284285319,-500.0,0.00041643,32]
[326725891,1715284285328,-500.0,0.00041643,32]
[326725892,1715284285337,-3092.76,0.00041643,32]
[326725893,1715284285347,-4180.26,0.00041643,32]
[326725894,1715284285356,-503.6187316,0.00041643,32]
[326725895,1715284285366,-500.0,0.00041643,32]
[326725896,1715284285375,-11885.87,0.00041643,32]
[326725897,1715284285385,-500.0,0.00041643,32]
[326725898,1715284285396,-500.0,0.00041643,32]
[326725899,1715284285405,-1688.14,0.00041643,32]
[326725900,1715284285415,-500.0,0.00041643,32]
[326725901,1715284285425,-529.75388103,0.00041643,32]
[326725902,1715284285435,-758.7,0.00041643,32]
[326725903,1715284285444,-5174.26,0.00041643,32]
[326725904,1715284285454,-856.59,0.00041643,32]
[326725905,1715284285463,-942.69,0.00041643,32]
[326725906,1715284285473,-500.0,0.00041643,32]
[326725907,1715284285482,-631.9,0.00041643,32]
[326725908,1715284285492,-503.94255735,0.00041643,32]
[326725909,1715284285502,-8673.49,0.00041643,32]
[326725910,1715284285512,-500.0,0.00041643,32]
[326725911,1715284285523,-505.41017294,0.00041643,32]
[326725912,1715284285534,-500.0,0.00041643,32]
[326725913,1715284285545,-2621.9,0.00041643,32]
[326725914,1715284285556,-500.0,0.00041643,32]
[326725915,1715284285567,-879.6,0.00041643,32]
[326725916,1715284285577,-500.0,0.00041643,32]
[326725917,1715284285589,-515.44,0.00041643,32]
[326725918,1715284285599,-3116.05,0.00041643,32]
[326725919,1715284285609,-500.0,0.00041643,10]
[326725920,1715284285619,-500.0,0.00041643,32]
[326725921,1715284285630,-516.28125047,0.00041643,32]
[326725922,1715284285640,-1713.46,0.00041643,32]
[326725923,1715284285650,-3475.4,0.00041643,32]
[326725924,1715284285660,-500.0,0.00041643,32]
[326725925,1715284285669,-507.68424091,0.00041643,32]
[326725926,1715284285679,-1255.11,0.00041643,32]
[326725927,1715284285689,-648.43,0.00041643,2]
[326725928,1715284285700,-2467.68,0.00041643,32]
[326725929,1715284285709,-3654.24,0.00041643,32]
[326725930,1715284285719,-504.01024258,0.00041643,32]
[326725931,1715284285728,-161.035085,0.00041643,14]
[326725932,1715284285737,-500.0,0.00041643,32]
[326725933,1715284285748,-500.0,0.00041643,32]
[326725934,1715284285757,-161.035085,0.00041643,14]
[326725935,1715284285766,-818.78,0.00041643,32]
[326725936,1715284285776,-500.0,0.00041643,32]
[326725937,1715284285785,-646.91,0.00041643,32]
[326725938,1715284285795,-769.96,0.00041643,32]
[326725939,1715284285804,-500.0,0.00041643,32]
[326725940,1715284285814,-500.0,0.00041643,32]
[326725941,1715284285823,-515.31498471,0.00041643,32]